[Event "3rd Manaus Open 2024"]
[Site "Manaus"]
[Date "2024.10.13"]
[Round "3.5"]
[White "Santiago, Yago De Moura"]
[Black "Casalaspro, Mathias Andre"]
[Result "1/2-1/2"]
[ECO "E92"]
[WhiteElo "2460"]
[BlackElo "2187"]
[Annotator "TA"]
[PlyCount "66"]
[EventDate "2024.10.05"]
[EventType "swiss"]
[EventCountry "BRA"]
[SourceTitle "playchess.com"]
[Source "ChessBase"]
[SourceQuality "1"]
[TimeControl "5400+30"]

{[%evp 16,66,49,20,32,23,45,43,23,46,41,0,0,0,0,0,0,0,4,0,0,0,0,0,0,0,0,0,108,0,0,-13,-24,-13,-35,0,19,-56,0,0,-12,-1,-2,-78,0,0,210,-254,6107,-6119,886,-2050,658]} 1. d4 {[%emt 0:00:56]} Nf6 {[%emt 0:03:53]} 2. c4 {[%emt 0:00:08]} g6 {[%emt 0:00:31]} 3. Nc3 {[%emt 0:00:08]} Bg7 {[%emt 0:00:18]} 4. e4 {[%emt 0:00:08]} d6 {[%emt 0:00:25]} 5. Nf3 {[%emt 0:00:16]} O-O {[%emt 0:00:36]} 6. Be2 {[%emt 0:00:06]} e5 {[%emt 0:00:27]} 7. d5 {[%emt 0:00:08]} a5 {[%emt 0:00:33]} 8. Bg5 {[%emt 0:00:08]} h6 {[%emt 0:00:53]} 9. Be3 {[%emt 0:00:09]} Ng4 {[%emt 0:00:33] E92: Konings-Indisch: Klassiek: 6 Le2 e5: 7 dxe5, 7 Le3 en Petrosian Systeem zonder 7...Pbd7.} 10. Bd2 {[%emt 0:00:08] Beste} f5 {[%emt 0:00:30]} 11. h3 {[%emt 0:00:32]} Nf6 {[%emt 0:00:26] OK. Wit staat iets beter.} 12. exf5 {[%emt 0:00:08] OK} gxf5 {[%emt 0:00:35]} 13. g4 {[%emt 0:00:12] Onnauwkeurig} fxg4 {[%emt 0:06:16] OK} 14. hxg4 {[%emt 0:00:09]} Nxg4 {[%emt 0:00:25][%cal Oe5e4]} 15. Ne4 {[%emt 0:00:09] Dreigt te winnen met Nh4. Beste (Gemakkelijk)} Nd7 {[%emt 0:12:33][%cal Bb8d7,Bd7f6,Bf6e4][%mdl 32] EV=22.37. Goes to g5 (dbg)). OK} 16. Nh4 $36 {[%emt 0:16:29][%mdl 2048] Wit heeft goed spel. OK} Ndf6 {[%emt 0:08:07]} 17. Bxg4 {[%emt 0:01:52]} (17. Ng3 $5 {is complexer.} e4 18. Nhf5 Nxf2 19. Kxf2 e3+ 20. Bxe3 Bxf5 21. Nxf5 Ne4+ 22. Kg1) 17... Nxe4 {[%emt 0:00:25] Beste (Gemakkelijk)} 18. Be3 {[%emt 0:00:06] OK} Qf6 {[%emt 0:01:49]} 19. Bxc8 {[%emt 0:00:45] Beste (Gemakkelijk)} Raxc8 {[%emt 0:02:31]} 20. Qc2 {[%emt 0:00:05] OK} Ng5 {[%emt 0:01:38] OK} 21. O-O-O {[%emt 0:01:37] Beste (Gemakkelijk)} e4 {[%emt 0:03:23] Fout (1.1)} (21... c6 $1 $11) {Wit moet spelen} 22. Kb1 {[%emt 0:06:44] Fout (1.1)} (22. Ng2 $1 $16) 22... c6 $146 {[%emt 0:10:17] Hoopt vervolgens op ...cxd5.} ({Predecessor:} 22... c5 23. a4 Ra8 24. Ng2 Ra6 25. Ka2 Rb6 26. Rb1 Qe5 27. Rh4 Rb4 28. b3 b5 29. cxb5 Qxd5 30. Nf4 Rxa4# {0-1 Schwander,L (2182)-Baenziger,F (2352) SUI-ch HT 119th 2019 (9)}) 23. Bd4 {[%emt 0:03:20]} Qf7 {[%emt 0:02:01] OK} 24. Bxg7 {[%emt 0:11:12] OK} Kxg7 {[%emt 0:11:10]} 25. Qc3+ {[%emt 0:01:40]} Kg8 {[%emt 0:00:06]} 26. Qxa5 {[%emt 0:02:55] Fout (0.8)} (26. Ng2 $11) {Beter is} 26... cxd5 {[%emt 0:10:04] Fout (0.6)} (26... c5 $1 $15) 27. Rxd5 {[%emt 0:01:57] Nf5 is de sterke dreiging.} Rc5 $1 {[%emt 0:04:31] Sterk} 28. Rxc5 {[%emt 0:02:47] OK} dxc5 {[%emt 0:00:07]} 29. Qb6 {[%emt 0:00:45] blijft gelijk. Fout (0.8)} (29. Qxc5 $11 Qxf2 30. Qd5+ Rf7 31. Ng6) {Zwart zou moeten proberen} 29... Qf6 {[%emt 0:08:13] Fout (0.8)} (29... Qh7 $1 $17 {Sterke dreiging met ...e3+.} 30. Ka1 (30. Qxc5 $2 {te hebberig.} e3+ 31. Kc1 exf2 $19) 30... Rxf2) 30. Qxb7 {[%emt 0:05:16]} Qf4 $2 {[%emt 0:12:14] [#] en Zwart blijft veilig. Verliest partij (2.1)} (30... Qd6 $11) 31. f3 $4 {[%mdl 8192] [#] Wit heeft alles onder controle. Gemiste overwinning (4.6)} Qxf3 {[%emt 0:00:00][%mdl 8192] [#] Gemiste overwinning (63.6)} 32. Ng6 $4 {[%emt 0:03:08][%mdl 8192] [#] Gemiste overwinning (122.3)} Qf2 $4 {[%emt 0:00:00][%mdl 8192] [#] Gemiste overwinning (70.0)} 33. Qc8 $4 {[%emt 0:08:33][%mdl 8192]} Kg7 $4 {[%emt 0:00:00][%mdl 40960] Blunder waarde: Wit=0.78/Zwart=0.77.  Verliest partij:   	---       	Zwart=1      Gemiste overwinning: 	Wit=2      	Zwart=2      Fout:        	Wit=3      	Zwart=3      Onnauwkeurig:    	Wit=1      	---        OK:         	Wit=6      	Zwart=5      Beste:        	Wit=4      	Zwart=1      Sterk:        	---       	Zwart=1     . Een verassend resultaat.} (33... Rxc8 $19 34. Ne7+ Kg7 35. Nxc8 e3) 1/2-1/2

[Event "3rd Manaus Open 2024"]
[Site "Manaus"]
[Date "2024.10.13"]
[Round "3.6"]
[White "Terao, Juliana Sayumi"]
[Black "Flom, Gabriel"]
[Result "0-1"]
[ECO "C41"]
[WhiteElo "2187"]
[BlackElo "2460"]
[Annotator "TA"]
[PlyCount "64"]
[EventDate "2024.10.05"]
[EventType "swiss"]
[EventCountry "BRA"]
[SourceTitle "playchess.com"]
[Source "ChessBase"]
[SourceQuality "1"]
[TimeControl "5400+30"]

{[%evp 9,64,53,26,0,69,58,74,58,113,40,83,57,32,34,72,58,92,78,112,70,78,-42,-27,-30,-31,-15,-23,-66,0,-38,-9,-121,-86,-88,-139,-75,0,-69,0,-60,-45,-58,-84,-79,0,0,253,226,240,-751,-738,-29991,-29992,-29996,-29997,-29997,-29998]} 1. e4 {[%emt 0:01:38]} d6 {[%emt 0:00:06]} 2. d4 {[%emt 0:00:14]} Nf6 {[%emt 0:00:04]} 3. Nc3 {[%emt 0:00:08]} e5 {[%emt 0:00:04]} 4. Nf3 {[%emt 0:00:19]} Nbd7 {[%emt 0:00:05]} 5. Rg1 {[%emt 0:01:03]} c6 {[%emt 0:02:20]} 6. g4 {[%emt 0:00:34][%cal Bg2g4,Bg4g5][%mdl 32] EV=17.90. Goes to g5 (dbg)). C41: Philidor Verdediging.} g6 {[%emt 0:00:04] Fout (0.7)} (6... Qa5 $1 $11) 7. g5 $14 {[%emt 0:02:36] OK} Nh5 {[%emt 0:00:18] OK} 8. Be3 {[%emt 0:03:08] OK. Wit staat beter.} Qb6 $146 {[%emt 0:00:48] Fout (0.6)} (8... Qc7 $14) ({Predecessor:} 8... Bg7 9. dxe5 dxe5 10. Qd6 Qe7 11. Qxe7+ Kxe7 12. O-O-O b6 13. Nb1 h6 14. h4 hxg5 15. hxg5 {0-1 Grandelius,N (2635)-Vidit,S (2723) Chessable Masters Prelim rapid 2022 (14)}) 9. Qc1 {[%emt 0:04:07] Fout (0.7)} (9. a3 $1 $16) 9... Qa5 {[%emt 0:03:35] Onnauwkeurig} 10. Be2 {[%emt 0:10:29] Onnauwkeurig} Bg7 {[%emt 0:01:10] OK} 11. Qd2 {[%emt 0:02:18]} b5 {[%emt 0:07:46] Onnauwkeurig} 12. a3 {[%emt 0:06:50]} Nf4 {[%emt 0:08:04] Onnauwkeurig} 13. Bxf4 {[%emt 0:09:27] Beste (Gemakkelijk)} exf4 {[%emt 0:00:03] Onnauwkeurig} 14. O-O-O {[%emt 0:02:27] Onnauwkeurig} Rb8 {[%emt 0:06:26]} {Wit zou moeten spelen} 15. Qxf4 {[%emt 0:12:46] Fout (1.2)} (15. h4 $1 $16) 15... b4 $15 {[%emt 0:00:26] Beste (Gemakkelijk)} 16. Nb1 {[%emt 0:00:23] OK} Qc7 {[%emt 0:11:21] OK} 17. axb4 {[%emt 0:18:25]} Rxb4 {[%emt 0:00:05]} 18. c3 {[%emt 0:00:12] OK} Rb8 {[%emt 0:01:31] Onnauwkeurig} 19. Na3 {[%emt 0:00:52] OK} O-O {[%emt 0:01:47] Wit zou ...Nb6 moeten voorkomen. Onnauwkeurig} 20. Nc4 {[%emt 0:06:52] blijft gelijk. Fout (1.1)} (20. Rd2 $1 $11) 20... Ba6 $17 {[%emt 0:00:06] Dreigt te winnen met ...c5. Beste (Gemakkelijk)} 21. Rd2 {[%emt 0:00:34][%cal Rf4d6] Beste} Bxc4 {[%emt 0:00:14] Beste (Gemakkelijk)} 22. Bxc4 {[%emt 0:00:07]} c5 {[%emt 0:00:54] Fout (0.8)} (22... Qa5 $1 $17 {met als doel voor ...d5.} 23. Rc2 d5 24. exd5 Nb6 (24... cxd5 25. Bd3 $18)) 23. Bd5 {[%emt 0:07:56] Fout (0.7)} (23. Rc2 $1 $11) 23... Qa5 {[%emt 0:06:42] Fout (0.7)} (23... Nb6 $15 24. Ba2 cxd4 25. Nxd4 Nd7) {Wit zou moeten proberen} 24. Kc2 {[%emt 0:03:46] Fout (0.6)} (24. Qxd6 $11 cxd4 25. cxd4 (25. Qxd7 $2 {vergaat.} dxc3 26. Kd1 cxd2 $19)) 24... Nb6 $15 {[%emt 0:14:11] En nu zou ...Na4 winnen. OK} 25. Qxd6 {[%emt 0:01:31] Beste (Gemakkelijk)} Na4 $36 {[%emt 0:00:04][%cal Rb8b2][%mdl 2048] Zwart heeft controle. Dansen op een scheermes. OK} 26. Rb1 {[%emt 0:02:34] Zwart moet nu Rd3 voorkomen. OK} {Zwart zou moeten spelen} Rb6 {[%emt 0:00:20] Fout (0.8)} (26... Rxb2+ $1 $17 27. Rxb2 Qxc3+ 28. Kb1 Nxb2 29. Qxc5 Nc4 30. Bxc4 Qxf3 31. Qxa7 Rc8 (31... Qxe4+ $2 32. Kc1 $19) (31... Qc3 $2 32. Rc2 $19)) 27. Qf4 {[%emt 0:00:53] Sterke dreiging met Rd3.} cxd4 $2 {[%emt 0:00:49][%mdl 8192] en Zwart blijft veilig. Verliest partij (2.5)} (27... c4 $1 $11) 28. b4 $1 $18 {[%emt 0:00:44] Sterk} Qa6 {[%emt 0:00:32]} 29. Nxd4 $4 {[%emt 0:00:40][%mdl 8192] [#] Gemiste overwinning (9.9)} (29. Rxd4 $18 Bxd4 30. Nxd4) 29... Nxc3 $1 $19 {[%emt 0:02:21] Briljant} 30. Kxc3 {[#] Onnauwkeurig} (30. b5 Nxd5) 30... Rc8+ $1 {[%emt 0:00:03] Zwart zet mat.} ({Sla niet} 30... Qa3+ $2 31. Kc2 $18) 31. Kb3 {[%emt 0:00:33] [#]} Rxb4+ $3 {[%emt 0:00:08][%mdl 512]} 32. Kxb4 {[%emt 0:00:12]} Bf8+ {[%emt 0:00:03] Blunder waarde: Wit=0.59/Zwart=0.29 (precies) .  Verliest partij:   	---       	Zwart=1      Gemiste overwinning: 	Wit=1      	---        Fout:        	Wit=5      	Zwart=5      Onnauwkeurig:    	Wit=3      	Zwart=6      OK:         	Wit=6      	Zwart=5      Beste:        	Wit=3      	Zwart=3      Sterk:        	Wit=1      	---        Briljant:      	---       	Zwart=1} 0-1

[Event "3rd Manaus Open 2024"]
[Site "Manaus"]
[Date "2024.10.13"]
[Round "3.7"]
[White "Gauche, Charles"]
[Black "Rodriguez Vila, Andres"]
[Result "0-1"]
[ECO "A21"]
[WhiteElo "2168"]
[BlackElo "2419"]
[Annotator "RC"]
[PlyCount "105"]
[EventDate "2024.10.05"]
[EventType "swiss"]
[EventCountry "BRA"]
[SourceTitle "playchess.com"]
[Source "ChessBase"]
[SourceQuality "1"]
[TimeControl "5400+30"]

1. c4 {[%emt 0:02:32]} e5 {[%emt 0:00:32]} 2. Nc3 {[%emt 0:00:43]} Bb4 {[%emt 0:01:24]} 3. a3 {[%emt 0:00:52]} Bxc3 {[%emt 0:00:06]} 4. bxc3 {[%emt 0:00:03]} Nf6 {[%emt 0:00:35]} 5. d3 {[%emt 0:00:17]} O-O {[%emt 0:00:12]} 6. e4 {[%emt 0:01:07]} c6 {[%emt 0:00:16]} 7. Bg5 {[%emt 0:00:34]} h6 {[%emt 0:01:16]} 8. Bh4 {[%emt 0:02:31]} Re8 {[%emt 0:04:29]} 9. Be2 {[%emt 0:11:10]} d6 {[%emt 0:02:22]} 10. Qc2 {[%emt 0:02:31]} Nbd7 {[%emt 0:00:13]} 11. Nf3 {[%emt 0:01:42]} Nf8 {[%emt 0:00:35]} 12. Nd2 {[%emt 0:01:35]} g5 {[%emt 0:03:03]} 13. Bg3 {[%emt 0:00:11]} Ng6 {[%emt 0:00:06]} 14. h4 {[%emt 0:03:57]} g4 {[%emt 0:00:08]} 15. Nf1 {[%emt 0:11:27]} d5 {[%emt 0:00:50]} 16. Ne3 {[%emt 0:12:35]} d4 {[%emt 0:02:49]} 17. cxd4 {[%emt 0:01:18]} exd4 {[%emt 0:00:13]} 18. Nf1 {[%emt 0:01:04]} Nh5 {[%emt 0:00:51]} 19. Qd2 {[%emt 0:00:30]} Kh7 {[%emt 0:00:10]} 20. Nh2 {[%emt 0:04:36]} f5 {[%emt 0:00:23]} 21. exf5 {[%emt 0:00:13]} Bxf5 {[%emt 0:04:35]} 22. O-O {[%emt 0:00:09]} Qd7 {[%emt 0:01:15]} 23. Rfe1 {[%emt 0:02:40]} Re7 {[%emt 0:07:48]} 24. Bf1 {[%emt 0:01:22]} Rae8 {[%emt 0:02:18]} 25. Rxe7+ {[%emt 0:07:44]} Qxe7 {[%emt 0:01:19]} 26. Qa5 {[%emt 0:00:35]} Nxg3 {[%emt 0:13:52]} 27. fxg3 {[%emt 0:00:23]} Bc8 {[%emt 0:01:05]} 28. h5 {[%emt 0:01:31]} Qe3+ {[%emt 0:01:07]} 29. Kh1 {[%emt 0:00:03]} Ne5 {[%emt 0:00:09]} 30. Re1 {[%emt 0:02:53]} Qxg3 {[%emt 0:06:50]} 31. Qc7+ {[%emt 0:01:33]} Kg8 {[%emt 0:03:09]} 32. Re4 {[%emt 0:00:08]} Bf5 {[%emt 0:01:54]} 33. Rxd4 {[%emt 0:01:40]} Qe1 {[%emt 0:04:38]} 34. Rf4 {[%emt 0:03:54]} Rf8 {[%emt 0:13:42]} 35. Qe7 {[%emt 0:21:57]} Qe3 {[%emt 0:09:26]} 36. g3 {[%emt 0:00:00]} Nxc4 {[%emt 0:01:55]} 37. Qxe3 {[%emt 0:00:00]} Nxe3 {[%emt 0:00:06]} 38. Be2 {[%emt 0:00:00]} Be6 {[%emt 0:01:23]} 39. Rxf8+ {[%emt 0:00:00]} Kxf8 {[%emt 0:00:09]} 40. Kg1 {[%emt 0:00:00]} b5 {[%emt 0:00:15]} 41. Kf2 {[%emt 0:00:00]} Nc2 {[%emt 0:00:08]} 42. Bxg4 {[%emt 0:00:00]} Bxg4 {[%emt 0:00:11]} 43. Nxg4 {[%emt 0:00:00]} Nxa3 {[%emt 0:00:42]} 44. Ke3 {[%emt 0:00:00]} b4 {[%emt 0:02:06]} 45. Kd2 {[%emt 0:00:00]} Kg7 {[%emt 0:00:39]} 46. Ne5 {[%emt 0:00:00]} c5 {[%emt 0:00:19]} 47. Nd7 {[%emt 0:00:00]} c4 {[%emt 0:00:50]} 48. dxc4 {[%emt 0:00:00]} Nxc4+ {[%emt 0:00:07]} 49. Kd3 {[%emt 0:00:00]} b3 {[%emt 0:01:36]} 50. Nc5 {[%emt 0:00:00]} b2 {[%emt 0:00:14]} 51. Kc2 {[%emt 0:00:00]} Kf6 {[%emt 0:00:24]} 52. Nd7+ {[%emt 0:08:30]} Kf7 53. Kd3 {[%emt 0:00:30]} 0-1

[Event "3rd Manaus Open 2024"]
[Site "Manaus"]
[Date "2024.10.13"]
[Round "3.8"]
[White "Sunye Neto, Jaime"]
[Black "Souza Neves, Andrey M."]
[Result "1-0"]
[ECO "D37"]
[WhiteElo "2381"]
[BlackElo "2154"]
[Annotator "RC"]
[PlyCount "69"]
[EventDate "2024.10.05"]
[EventType "swiss"]
[EventCountry "BRA"]
[SourceTitle "playchess.com"]
[Source "ChessBase"]
[SourceQuality "1"]
[TimeControl "5400+30"]

1. c4 {[%emt 0:00:03]} e6 {[%emt 0:02:39]} 2. Nf3 {[%emt 0:01:10]} d5 {[%emt 0:00:08]} 3. d4 {[%emt 0:00:13]} Nf6 {[%emt 0:00:19]} 4. Nc3 {[%emt 0:01:24]} a6 {[%emt 0:00:16]} 5. cxd5 {[%emt 0:01:37]} exd5 {[%emt 0:00:07]} 6. Bg5 {[%emt 0:00:36]} Be6 {[%emt 0:00:08]} 7. e3 {[%emt 0:02:03]} Nbd7 {[%emt 0:00:14]} 8. Be2 {[%emt 0:01:11]} Bd6 {[%emt 0:00:38]} 9. O-O {[%emt 0:08:51]} c6 {[%emt 0:01:11]} 10. Bf4 {[%emt 0:15:10]} Qc7 {[%emt 0:04:09]} 11. Bxd6 {[%emt 0:07:17]} Qxd6 {[%emt 0:00:07]} 12. Qc2 {[%emt 0:00:10]} Bg4 {[%emt 0:03:27]} 13. a3 {[%emt 0:03:01]} O-O {[%emt 0:01:39]} 14. b4 {[%emt 0:01:03]} Rfe8 {[%emt 0:04:50]} 15. Na4 {[%emt 0:05:39]} b5 {[%emt 0:04:58]} 16. Nc5 {[%emt 0:03:35]} Nxc5 {[%emt 0:00:37]} 17. dxc5 {[%emt 0:00:20]} Qc7 {[%emt 0:04:40]} 18. Nd4 {[%emt 0:01:32]} Re5 {[%emt 0:03:22]} 19. a4 {[%emt 0:00:57]} Rae8 {[%emt 0:05:53]} 20. axb5 {[%emt 0:05:31]} Rh5 {[%emt 0:03:36]} 21. f4 {[%emt 0:02:47]} axb5 {[%emt 0:10:40]} 22. h3 {[%emt 0:01:24]} Bxe2 {[%emt 0:04:22]} 23. Qxe2 {[%emt 0:00:17]} Rh6 {[%emt 0:01:48]} 24. Ra6 {[%emt 0:00:17]} Ne4 {[%emt 0:00:40]} 25. Rfa1 {[%emt 0:00:09]} Nc3 {[%emt 0:05:31]} 26. Qd3 {[%emt 0:02:02]} Na4 {[%emt 0:00:48]} 27. Rxc6 {[%emt 0:11:13]} Rxc6 {[%emt 0:08:57]} 28. Qxb5 {[%emt 0:00:10]} Qe7 {[%emt 0:01:01]} 29. Qxc6 {[%emt 0:00:30]} Qxe3+ {[%emt 0:00:19]} 30. Kh1 {[%emt 0:00:11]} Nc3 {[%emt 0:02:24]} 31. Nf5 {[%emt 0:01:25]} Qe6 {[%emt 0:04:39]} 32. Qxe6 {[%emt 0:01:58]} fxe6 {[%emt 0:00:06]} 33. Nd6 {[%emt 0:00:05]} Rf8 {[%emt 0:01:03]} 34. c6 {[%emt 0:00:15]} d4 {[%emt 0:02:28]} 35. c7 {[%emt 0:02:07]} 1-0

[Event "3rd Manaus Open 2024"]
[Site "Manaus"]
[Date "2024.10.13"]
[Round "3.9"]
[White "Zallio, Luciano de Souza"]
[Black "Molina, Roberto Junio Brito"]
[Result "0-1"]
[ECO "A06"]
[WhiteElo "2114"]
[BlackElo "2381"]
[Annotator "RC"]
[PlyCount "130"]
[EventDate "2024.10.05"]
[EventType "swiss"]
[EventCountry "BRA"]
[SourceTitle "playchess.com"]
[Source "ChessBase"]
[SourceQuality "1"]
[TimeControl "5400+30"]

1. Nf3 {[%emt 0:09:04]} d5 {[%emt 0:01:59]} 2. b3 {[%emt 0:00:54]} Bg4 {[%emt 0:00:25]} 3. Bb2 {[%emt 0:00:50]} Nd7 {[%emt 0:00:48]} 4. g3 {[%emt 0:01:29]} Bxf3 {[%emt 0:02:51]} 5. exf3 {[%emt 0:00:10]} e5 {[%emt 0:00:18]} 6. Bg2 {[%emt 0:01:18]} Ngf6 {[%emt 0:00:18]} 7. O-O {[%emt 0:02:44]} Bd6 {[%emt 0:00:27]} 8. d4 {[%emt 0:01:01]} O-O {[%emt 0:00:58]} 9. dxe5 {[%emt 0:00:32]} Bxe5 {[%emt 0:00:09]} 10. Nc3 {[%emt 0:01:50]} c6 {[%emt 0:01:15]} 11. f4 {[%emt 0:02:15]} Bd6 {[%emt 0:00:24]} 12. a3 {[%emt 0:02:39]} Re8 {[%emt 0:00:18]} 13. Re1 {[%emt 0:00:25]} Rxe1+ {[%emt 0:01:32]} 14. Qxe1 {[%emt 0:00:10]} Qf8 {[%emt 1:25:48]} 15. Nd1 {[%emt 0:11:53]} Re8 {[%emt 0:00:00]} 16. Qd2 {[%emt 0:05:02]} Qe7 {[%emt 0:00:00]} 17. Ne3 {[%emt 0:09:02]} Bc5 {[%emt 0:00:00]} 18. Bd4 {[%emt 0:01:38]} Bxd4 {[%emt 0:00:00]} 19. Qxd4 {[%emt 0:00:09]} Qc5 {[%emt 0:00:00]} 20. Qd3 {[%emt 0:01:39]} Qb6 {[%emt 0:00:00]} 21. b4 {[%emt 0:03:34]} a5 {[%emt 0:00:00]} 22. Rb1 {[%emt 0:03:36]} axb4 {[%emt 0:00:00]} 23. axb4 {[%emt 0:01:26]} Rd8 {[%emt 0:00:00]} 24. c4 {[%emt 0:01:34]} dxc4 {[%emt 0:00:00]} 25. Qxc4 {[%emt 0:00:52]} Nf8 {[%emt 0:00:00]} 26. Qc5 {[%emt 0:03:23]} Qxc5 {[%emt 0:00:00]} 27. bxc5 {[%emt 0:00:23]} Rd7 {[%emt 0:00:00]} 28. Nc4 {[%emt 0:04:44]} Ne6 {[%emt 0:00:00]} 29. Na5 {[%emt 0:11:22]} Nd8 {[%emt 0:00:00]} 30. Bh3 {[%emt 0:00:28]} Rd5 {[%emt 0:00:00]} 31. Nxb7 {[%emt 0:03:01]} Nxb7 {[%emt 0:00:00]} 32. Rxb7 {[%emt 0:00:03]} g6 {[%emt 0:00:00]} 33. Bg2 {[%emt 0:06:28]} Rxc5 {[%emt 0:00:00]} 34. Bf3 Rc3 {[%emt 0:00:00]} 35. Kg2 {[%emt 0:01:05]} c5 {[%emt 0:00:00]} 36. Rc7 {[%emt 0:00:31]} h5 {[%emt 0:00:00]} 37. h3 {[%emt 0:01:52]} Kf8 {[%emt 0:00:00]} 38. Bc6 {[%emt 0:01:50]} Rc1 {[%emt 0:02:45]} 39. Kf3 {[%emt 0:03:02]} Rc2 {[%emt 0:01:21]} 40. Kg2 {[%emt 0:00:49]} Rc3 {[%emt 0:01:26]} 41. Bf3 {[%emt 0:01:21]} Ne8 {[%emt 0:00:16]} 42. Rd7 {[%emt 0:00:16]} Nf6 {[%emt 0:01:23]} 43. Rc7 {[%emt 0:00:03]} Rc4 {[%emt 0:04:20]} 44. Bc6 {[%emt 0:00:53]} h4 {[%emt 0:00:32]} 45. Bb5 {[%emt 0:03:36]} Rc3 {[%emt 0:00:29]} 46. Bc6 {[%emt 0:01:25]} hxg3 {[%emt 0:00:51]} 47. fxg3 {[%emt 0:00:02]} Nh5 {[%emt 0:01:18]} 48. Bd5 {[%emt 0:00:13]} f5 {[%emt 0:00:37]} 49. Bf3 {[%emt 0:01:16]} Rc2+ {[%emt 0:00:07]} 50. Kg1 {[%emt 0:00:39]} Nxg3 {[%emt 0:00:08]} 51. h4 {[%emt 0:00:28]} c4 {[%emt 0:00:45]} 52. Bd5 {[%emt 0:00:31]} c3 {[%emt 0:00:52]} 53. Bb3 {[%emt 0:00:53]} Rb2 {[%emt 0:00:18]} 54. Ba4 {[%emt 0:01:07]} Rb4 {[%emt 0:00:27]} 55. Bc2 {[%emt 0:00:00]} Rxf4 {[%emt 0:00:11]} 56. Kg2 {[%emt 0:00:00]} Ne2 {[%emt 0:01:16]} 57. Bd3 {[%emt 0:01:30]} Nd4 {[%emt 0:00:34]} 58. h5 {[%emt 0:00:00]} gxh5 {[%emt 0:00:15]} 59. Rxc3 {[%emt 0:00:00]} Kg7 {[%emt 0:00:24]} 60. Kg3 {[%emt 0:00:19]} Rg4+ {[%emt 0:01:31]} 61. Kh3 {[%emt 0:00:27]} Kf6 {[%emt 0:00:08]} 62. Rc5 {[%emt 0:00:17]} Kg5 {[%emt 0:00:30]} 63. Rc4 {[%emt 0:00:48]} h4 {[%emt 0:00:27]} 64. Bc2 {[%emt 0:01:00]} Rg3+ {[%emt 0:00:01]} 65. Kh2 {[%emt 0:00:03]} Nf3+ {[%emt 0:00:06]} 0-1

[Event "3rd Manaus Open 2024"]
[Site "Manaus"]
[Date "2024.10.12"]
[Round "4"]
[White "Pessoa, Marcio de Souza"]
[Black "Gauche, Charles"]
[Result "0-1"]
[ECO "D02"]
[WhiteElo "1907"]
[BlackElo "2168"]
[Annotator "RC"]
[PlyCount "70"]
[EventDate "2024.10.05"]
[EventType "swiss"]
[EventCountry "BRA"]
[SourceTitle "playchess.com"]
[Source "ChessBase"]
[SourceQuality "1"]
[TimeControl "5400+30"]

1. d4 Nf6 2. Nf3 d5 3. Bf4 c5 4. e3 Nc6 5. c3 Qb6 6. Qb3 c4 7. Qc2 Bf5 8. Qc1 h6 9. h3 e6 10. Nbd2 Qd8 11. b3 b5 12. a4 a6 13. Be2 Be7 14. O-O O-O 15. Bd1 Bd3 16. Re1 b4 17. bxc4 dxc4 18. Ne5 Nxe5 19. Bxe5 Nd5 20. cxb4 Nxb4 21. Qc3 Rc8 22. a5 Nd5 23. Qc1 Bb4 24. Bc2 Bxa5 25. Ra3 f6 26. Rxa5 Qxa5 27. Bd6 Rfd8 28. Bc5 Qc3 29. Bxd3 cxd3 30. Qd1 Qc2 31. Ne4 f5 32. Nd6 Rxd6 33. Rf1 d2 34. Bb4 Qxd1 35. Bxd6 Ra8 0-1

[Event "3rd Manaus Open 2024"]
[Site "Manaus"]
[Date "2024.10.14"]
[Round "4.1"]
[White "Leitao, Rafael"]
[Black "Sunye Neto, Jaime"]
[Result "1-0"]
[ECO "B54"]
[WhiteElo "2592"]
[BlackElo "2381"]
[Annotator "TA"]
[PlyCount "53"]
[EventDate "2024.10.05"]
[EventType "swiss"]
[EventCountry "BRA"]
[SourceTitle "playchess.com"]
[Source "ChessBase"]
[SourceQuality "1"]
[TimeControl "5400+30"]

{[%evp 14,53,43,43,69,29,39,23,68,34,74,40,104,106,95,97,131,117,156,102,183,175,205,178,204,206,204,201,269,214,214,74,97,83,240,263,247,254,306,323,282,282]} 1. e4 {[%emt 0:00:38]} c5 {[%emt 0:00:08]} 2. Nf3 {[%emt 0:00:09]} e6 {[%emt 0:00:09]} 3. d4 {[%emt 0:00:12]} cxd4 {[%emt 0:00:21]} 4. Nxd4 {[%emt 0:00:08]} Nc6 {[%emt 0:01:17]} 5. Nc3 {[%emt 0:00:31]} d6 {[%emt 0:03:38]} 6. g4 {[%emt 0:03:14]} a6 {[%emt 0:01:47]} 7. Be3 {[%emt 0:00:57]} Nge7 {[%emt 0:07:44]} 8. Nb3 b5 {[%emt 0:30:51][%cal Bb7b5,Bb5c4][%mdl 32]} 9. h4 {[%emt 0:14:04] White is more active.} Bb7 {[%emt 0:01:36]} 10. Rh3 {[%emt 0:08:58]} Nc8 {[%emt 0:01:46] White has an edge.} 11. Qd2 {[%emt 0:07:25]} Nb6 {[%emt 0:07:21]} 12. O-O-O {[%emt 0:11:53]} Nc4 {[%emt 0:10:00]} ({Black should try} 12... Be7 $14) 13. Bxc4 $16 {[%emt 0:01:43]} bxc4 {[%emt 0:00:08]} 14. Nd4 {[%emt 0:00:21]} Rc8 {[%emt 0:03:33]} 15. Nxc6 {[%emt 0:08:25]} Rxc6 {[%emt 0:00:24]} 16. Bd4 {[%emt 0:02:18]} (16. h5 $142) 16... f6 {[%emt 0:06:23]} (16... Bc8 $16 {is a better defense.}) 17. g5 $18 {[%emt 0:01:09]} Be7 {[%emt 0:00:15]} 18. gxf6 {[%emt 0:12:52]} Bxf6 {[%emt 0:00:08]} 19. Bxf6 {[%emt 0:01:02]} Qxf6 {[%emt 0:00:23] [#]} 20. e5 $1 {[%emt 0:01:21][%mdl 512]} Qxe5 {[%emt 0:00:19]} (20... Qf5 21. exd6) 21. Re3 {[%emt 0:00:30]} Qf5 {[%emt 0:00:17]} 22. Ne4 {[%emt 0:00:51]} (22. Nd5 $18 {[%cal Oe3e6] Rxe6+! is the strong threat.} c3 23. bxc3) 22... O-O $16 {[%emt 0:17:17]} ({Avoid the trap} 22... d5 $2 23. Qb4 Bc8 24. Nd6+ Rxd6 25. Qxd6 $18) 23. Nxd6 {[%emt 0:04:02]} Rxd6 {[%emt 0:00:54] This move loses the game for Black.} 24. Qxd6 $18 {[%emt 0:00:09]} Bd5 {[%emt 0:00:07]} 25. Rg1 {[%emt 0:05:00]} Qxf2 {[%emt 0:00:53]} 26. Reg3 {[%emt 0:00:23]} g6 {[%emt 0:00:15]} 27. h5 $1 {[%emt 0:15:45] Weighted Error Value: White=0.22 (precise) /Black=0.35.  Mistake:       	White=2     	Black=3      Inaccurate:     	White=3     	Black=5      OK:         	White=6     	Black=4      Best:        	White=1     	Black=1      Strong:       	White=1     	---        Brilliant:      	White=1     	---} (27. Qxa6 {gets mated.} Qf4+ 28. Kd1 Bf3+ (28... Qxh4 29. Qd6 $11) 29. Rxf3 Qxf3+ 30. Kd2 Rd8+) 1-0